fUST/lending_fUST_20251110
["ID","MTS","AMOUNT","RATE_DAILY","PERIOD"]
[393495503,1762723400279,1944.95620746,0.00018168,2]
[393495504,1762723462683,179.86018724,0.00018249,2]
[393495505,1762723463343,532.669663,0.0001727,2]
[393495508,1762723508844,1058.75783107,0.00018075,2]
[393495509,1762723508870,460.31447125,0.00018075,2]
[393495510,1762723550335,-151.0,0.00018262,2]
[393495511,1762723550357,-118.95467509,0.00018262,2]
[393495512,1762723553111,-32.04532491,0.00018262,2]
[393495513,1762723553134,-151.0,0.00018262,2]
[393495514,1762723553158,-151.0,0.00018262,2]
[393495515,1762723553182,-72.47641679,0.00018262,2]
[393495516,1762723555347,-78.52358321,0.00018262,2]
[393495517,1762723555371,-151.0,0.00018262,2]
[393495518,1762723555394,-27.49304328,0.00018262,2]
[393495519,1762723556873,370.10364406,0.00018167,2]
[393495520,1762723565183,933.49304328,0.00018262,2]
[393495523,1762723615304,1701.83668151,0.00018167,2]
[393495524,1762723648896,2722.30866589,0.0001807,2]
[393495525,1762723651101,3811.95349401,0.0001807,2]
[393495526,1762723651125,108.17098487,0.0001807,2]
[393495530,1762723719858,9573.19254052,0.00014,2]
[393495531,1762723753407,-123.50695672,0.00018262,2]
[393495532,1762723753429,-100.4860378,0.00018262,2]
[393495533,1762723756358,-50.5139622,0.00018262,2]
[393495534,1762723756381,-122.9651991,0.00018262,2]
[393495535,1762723757912,-28.0348009,0.00018262,2]
[393495536,1762723757934,-265.0229971,0.00018262,2]
[393495537,1762723757956,-6.96946583,0.00018263,2]
[393495538,1762723759616,-143.03053417,0.00018263,2]
[393495539,1762723759637,-7.96946583,0.00018263,2]
[393495540,1762723761265,-183.30970447,0.00018263,2]
[393495541,1762723762928,-108.7208297,0.00018263,2]
[393495542,1762723762952,-127.50897368,0.00018264,2]
[393495543,1762723767392,183.30970447,0.00018192,2]
[393495547,1762723776065,284.26092354,0.00018192,2]
[393495548,1762723817066,246.7357627,0.00018164,2]
[393495549,1762723817722,966.21422889,0.0001807,2]
[393495550,1762723820407,1509.70973263,0.0001807,2]
[393495552,1762723830564,1489.10709633,0.00018164,2]
[393495571,1762723832164,-300.0,0.00018263,2]
[393495572,1762723832175,-300.0,0.00018263,2]
[393495573,1762723832186,-300.0,0.00018263,2]
[393495574,1762723832196,-300.0,0.00018263,2]
[393495575,1762723832206,-300.0,0.00018263,2]
[393495576,1762723832216,-1200.0,0.00018263,2]
[393495577,1762723832227,-207.42950715,0.00018263,2]
[393495578,1762723832237,-885.0,0.00018264,2]
[393495579,1762723832247,-500.0,0.00018264,2]
[393495580,1762723832257,-500.0,0.00018264,2]
[393495581,1762723832267,-500.0,0.00018264,2]
[393495582,1762723832276,-1396.99526545,0.00018264,2]
[393495583,1762723832285,-500.0,0.00018264,2]
[393495584,1762723832295,-500.0,0.00018264,2]
[393495585,1762723832304,-500.0,0.00018264,2]
[393495586,1762723832315,-500.0,0.00018264,2]
[393495587,1762723832325,-650.39972548,0.00018264,2]
[393495588,1762723832335,-500.0,0.00018264,2]
[393495589,1762723832345,-1396.99526545,0.00018264,2]
[393495590,1762723832354,-500.0,0.00018264,2]
[393495591,1762723832364,-500.0,0.00018264,2]
[393495592,1762723832490,-500.0,0.00018264,2]
[393495593,1762723832502,-500.0,0.00018264,2]
[393495594,1762723832512,-500.0,0.00018264,2]
[393495595,1762723832522,-1396.99526545,0.00018264,2]
[393495596,1762723832532,-500.0,0.00018264,2]
[393495597,1762723832542,-500.0,0.00018264,2]
[393495598,1762723832552,-500.0,0.00018264,2]
[393495599,1762723832561,-500.0,0.00018264,2]
[393495600,1762723832571,-500.0,0.00018264,2]
[393495601,1762723832581,-500.0,0.00018264,2]
[393495602,1762723832591,-500.0,0.00018264,2]
[393495603,1762723832600,-500.0,0.00018264,2]
[393495604,1762723832610,-500.0,0.00018264,2]
[393495605,1762723832620,-500.0,0.00018264,2]
[393495606,1762723832630,-500.0,0.00018264,2]
[393495607,1762723832639,-500.0,0.00018264,2]
[393495608,1762723832648,-1396.99526545,0.00018264,2]
[393495609,1762723832658,-624.8808628,0.00018264,2]
[393495610,1762723832667,-500.0,0.00018264,2]
[393495611,1762723832676,-500.0,0.00018264,2]
[393495612,1762723832686,-1396.99526545,0.00018264,2]
[393495613,1762723832695,-500.0,0.00018264,2]
[393495614,1762723832704,-500.0,0.00018264,2]
[393495615,1762723832714,-500.0,0.00018264,2]
[393495616,1762723832724,-500.0,0.00018264,2]
[393495617,1762723832733,-1396.99526545,0.00018264,2]
[393495618,1762723832743,-181.14924843,0.00018264,2]
[393495619,1762723832752,-500.0,0.00018264,2]
[393495620,1762723832765,-500.0,0.00018264,2]
[393495621,1762723832775,-500.0,0.00018264,2]
[393495622,1762723832784,-500.0,0.00018264,2]
[393495623,1762723832794,-1396.99526545,0.00018264,2]
[393495624,1762723832803,-500.0,0.00018264,2]
[393495625,1762723832812,-500.0,0.00018264,2]
[393495626,1762723832822,-1396.99526545,0.00018264,2]
[393495627,1762723832831,-500.0,0.00018264,2]
[393495628,1762723832841,-500.0,0.00018264,2]
[393495629,1762723832850,-500.0,0.00018264,2]
[393495630,1762723832859,-500.0,0.00018264,2]
[393495631,1762723832869,-500.0,0.00018264,2]
[393495632,1762723832879,-1396.99526545,0.00018264,2]
[393495633,1762723832889,-500.0,0.00018264,2]
[393495634,1762723832899,-500.0,0.00018264,2]
[393495635,1762723832908,-500.0,0.00018264,2]
[393495636,1762723832918,-500.0,0.00018264,2]
[393495637,1762723832928,-1396.99526545,0.00018264,2]
[393495638,1762723832937,-500.0,0.00018264,2]
[393495639,1762723832947,-500.0,0.00018264,2]
[393495640,1762723832956,-499.04948436,0.00018264,2]
[393495641,1762723832966,-500.0,0.00018264,2]
[393495642,1762723832975,-1396.99526545,0.00018264,2]
[393495643,1762723832985,-593.78982977,0.00018264,2]
[393495644,1762723832994,-500.0,0.00018264,2]
[393495645,1762723833003,-500.0,0.00018264,2]
[393495646,1762723833013,-1396.99526545,0.00018264,2]
[393495647,1762723833022,-500.0,0.00018264,2]
[393495648,1762723833032,-500.0,0.00018264,2]
[393495649,1762723833042,-1396.99526545,0.00018264,2]
[393495650,1762723833051,-500.0,0.00018264,2]
[393495651,1762723833061,-500.0,0.00018264,2]
[393495652,1762723833071,-500.0,0.00018264,2]
[393495653,1762723833080,-1396.99526545,0.00018264,2]
[393495654,1762723833091,-500.0,0.00018264,2]
[393495655,1762723833104,-500.0,0.00018264,2]
[393495656,1762723833114,-500.0,0.00018264,2]
[393495657,1762723833123,-1396.99526545,0.00018264,2]
[393495658,1762723833133,-500.0,0.00018264,2]
[393495659,1762723833143,-500.0,0.00018264,2]
[393495660,1762723833152,-500.0,0.00018264,2]
[393495661,1762723833162,-1396.99526545,0.00018264,2]
[393495662,1762723833171,-500.0,0.00018264,2]
[393495663,1762723833182,-1396.99526545,0.00018264,2]
[393495664,1762723833191,-500.0,0.00018264,2]
[393495665,1762723833200,-500.0,0.00018264,2]
[393495666,1762723833209,-1396.99526545,0.00018264,2]
[393495667,1762723833219,-500.0,0.00018264,2]
[393495668,1762723833228,-500.0,0.00018264,2]
[393495669,1762723833237,-1396.99526545,0.00018264,2]
[393495670,1762723833247,-500.0,0.00018264,2]
[393495671,1762723833256,-500.0,0.00018264,2]
[393495672,1762723833265,-1396.99526545,0.00018264,2]
[393495673,1762723833275,-500.0,0.00018264,2]
[393495674,1762723833285,-1396.99526545,0.00018264,2]
[393495675,1762723833294,-1396.99526545,0.00018264,2]
[393495676,1762723833303,-500.0,0.00018264,2]
[393495677,1762723833313,-500.0,0.00018264,2]
[393495678,1762723833322,-500.0,0.00018264,2]
[393495679,1762723833331,-500.0,0.00018264,2]
[393495680,1762723833340,-1396.99526545,0.00018264,2]
[393495681,1762723833350,-1396.99526545,0.00018264,2]
[393495682,1762723833360,-1396.99526545,0.00018264,2]
[393495683,1762723833376,-1396.99526545,0.00018264,2]
[393495684,1762723833386,-500.10097446,0.00018264,2]
[393495685,1762723833395,-1396.99526545,0.00018264,2]
[393495686,1762723833404,-500.0,0.00018264,2]
[393495687,1762723833413,-1396.99526545,0.00018264,2]
[393495688,1762723833422,-500.0,0.00018264,2]
[393495689,1762723833432,-1396.99526545,0.00018264,2]
[393495690,1762723833442,-525.48261466,0.00018264,2]
[393495691,1762723833504,-871.51265079,0.00018264,2]
[393495692,1762723833514,-500.0,0.00018264,2]
[393495693,1762723833523,-1396.99526545,0.00018264,2]
[393495694,1762723833532,-1396.99526545,0.00018264,2]
[393495695,1762723833541,-1396.99526545,0.00018264,2]
[393495696,1762723833553,-1396.99526545,0.00018264,2]
[393495697,1762723833563,-1396.99526545,0.00018264,2]
[393495698,1762723833572,-1396.99526545,0.00018264,2]
[393495699,1762723833581,-1396.99526545,0.00018264,2]
[393495700,1762723833591,-1396.99526545,0.00018264,2]
[393495701,1762723833600,-1396.99526545,0.00018264,2]
[393495702,1762723833609,-1396.99526545,0.00018264,2]
[393495703,1762723833618,-1396.99526545,0.00018264,2]
[393495704,1762723833627,-1396.99526545,0.00018264,2]
[393495705,1762723833636,-1396.99526545,0.00018264,2]
[393495706,1762723833646,-1396.99526545,0.00018264,2]
[393495707,1762723833659,-1396.99526545,0.00018264,2]
[393495708,1762723833669,-1396.99526545,0.00018264,2]
[393495709,1762723833678,-1396.99526545,0.00018264,2]
[393495710,1762723833688,-1396.99526545,0.00018264,2]
[393495711,1762723833698,-1396.99526545,0.00018264,2]
[393495712,1762723833707,-1396.99526545,0.00018264,2]
[393495713,1762723833718,-1396.99526545,0.00018264,2]
[393495714,1762723833727,-1396.99526545,0.00018264,2]
[393495715,1762723833737,-1396.99526545,0.00018264,2]
[393495716,1762723833747,-1396.99526545,0.00018264,2]
[393495717,1762723833756,-1396.99526545,0.00018264,2]
[393495718,1762723833766,-500.0,0.00018264,2]
[393495719,1762723833776,-500.0,0.00018264,2]
[393495720,1762723833786,-500.0,0.00018264,2]
[393495721,1762723833796,-500.0,0.00018264,2]
[393495722,1762723833806,-500.0,0.00018264,2]
[393495723,1762723833815,-500.0,0.00018264,2]
[393495724,1762723833825,-248.80862797,0.00018264,2]
[393495725,1762723833835,-10395.06854071,0.00018264,2]
[393495726,1762723833845,-500.0,0.00018264,2]
[393495727,1762723833854,-10395.06854071,0.00018264,2]
[393495728,1762723833864,-500.0,0.00018264,2]
[393495729,1762723833873,-500.0,0.00018264,2]
[393495730,1762723833882,-10395.06854071,0.00018264,2]
[393495731,1762723833892,-300.0,0.00018264,2]
[393495732,1762723833902,-10395.06854071,0.00018264,2]
[393495733,1762723833912,-500.0,0.00018264,2]
[393495734,1762723833922,-10395.06854071,0.00018264,2]
[393495735,1762723833931,-500.0,0.00018264,2]
[393495736,1762723833940,-10395.06854071,0.00018264,2]
[393495737,1762723833951,-10395.06854071,0.00018264,2]
[393495738,1762723833960,-500.0,0.00018264,2]
[393495739,1762723833970,-10395.06854071,0.00018264,2]
[393495740,1762723833979,-500.0,0.00018264,2]
[393495741,1762723833988,-10395.06854071,0.00018264,2]
[393495742,1762723833998,-10395.06854071,0.00018264,2]
[393495743,1762723834007,-500.0,0.00018264,2]
[393495744,1762723834016,-10395.06854071,0.00018264,2]
[393495745,1762723834025,-500.0,0.00018264,2]
[393495746,1762723834035,-10395.06854071,0.00018264,2]
[393495747,1762723834044,-650.0,0.00018264,2]
[393495748,1762723834054,-500.0,0.00018264,2]
[393495749,1762723834063,-10395.06854071,0.00018264,2]
[393495750,1762723834072,-10395.06854071,0.00018264,2]
[393495751,1762723834081,-500.0,0.00018264,2]
[393495752,1762723834093,-10395.06854071,0.00018264,2]
[393495753,1762723834107,-500.0,0.00018264,2]
[393495754,1762723834117,-10395.06854071,0.00018264,2]
[393495755,1762723834126,-10395.06854071,0.00018264,2]
[393495756,1762723834136,-10395.06854071,0.00018264,2]
[393495757,1762723834147,-500.0,0.00018264,2]
[393495758,1762723834156,-10395.06854071,0.00018264,2]
[393495759,1762723834165,-7190.28064171,0.00018264,2]
[393495760,1762723834184,-1810.54911172,0.00018264,2]
[393495769,1762723838104,-307.8364998,0.00018264,2]
[393495776,1762723838161,-49692.1635002,0.00018264,2]
[393495778,1762723838173,-160.0,0.00018269,2]
[393495780,1762723838183,-17281.1964998,0.00018273,2]
[393495805,1762723840173,-96012.53848584,0.00018273,2]
[393495806,1762723840599,-3e-08,0.00018273,2]
[393495807,1762723840611,-546.75,0.00018273,2]
[393495808,1762723840622,-11163.47274094,0.00018273,2]
[393495809,1762723840633,-15477.67628719,0.00018273,2]
[393495810,1762723840644,-64272.11906251,0.00018273,2]
[393495811,1762723840655,-10507.0,0.00018273,2]
[393495829,1762723846507,-1870.8029153,0.00018273,2]
[393495830,1762723846566,-467868.44400839,0.00018273,2]
[393495831,1762723846576,-151.0,0.00018349,2]
[393495832,1762723846586,-151.0,0.00018349,2]
[393495833,1762723846595,-816.0,0.00018349,2]
[393495834,1762723846605,-500.0,0.00018349,2]
[393495835,1762723846615,-500.0,0.00018349,2]
[393495836,1762723846625,-151.0,0.00018349,2]
[393495837,1762723846635,-151.0,0.00018349,2]
[393495838,1762723846646,-152.36297546,0.00018349,2]
[393495839,1762723846655,-198.0,0.00018349,2]
[393495840,1762723846665,-151.0,0.00018349,2]
[393495841,1762723846674,-193.04631888,0.00018349,2]
[393495842,1762723846684,-151.0,0.00018349,2]
[393495843,1762723846694,-3515.9764403,0.00018362,2]
[393495844,1762723846703,-39534.7356753,0.00018362,2]
[393495845,1762723846713,-32188.2937501,0.00018363,2]
[393495846,1762723846724,-401.27082601,0.0001837,2]
[393495847,1762723846734,-500.0,0.00018373,2]
[393495848,1762723846743,-422.39679512,0.00018373,2]
[393495849,1762723846753,-500.0,0.00018373,2]
[393495850,1762723846762,-232.32869624,0.00018373,2]
[393495851,1762723846772,-500.0,0.00018373,2]
[393495852,1762723846781,-500.0,0.00018373,2]
[393495853,1762723846791,-500.0,0.00018373,2]
[393495854,1762723846800,-500.0,0.00018373,2]
[393495855,1762723846810,-500.0,0.00018373,2]
[393495856,1762723846819,-619.15661723,0.00018373,2]
[393495857,1762723846828,-150.0,0.000184,2]
[393495858,1762723846838,-150.0,0.000184,2]
[393495859,1762723846847,-150.0,0.000184,2]
[393495860,1762723846856,-150.0,0.000184,2]
[393495861,1762723846866,-151.0,0.00018404,2]
[393495862,1762723846875,-151.0,0.00018404,2]
[393495863,1762723846885,-816.0,0.00018404,2]
[393495864,1762723846894,-500.0,0.00018404,2]
[393495865,1762723846904,-500.0,0.00018404,2]
[393495866,1762723846913,-151.0,0.00018404,2]
[393495867,1762723846926,-152.10695043,0.00018404,2]
[393495868,1762723846938,-286.70110518,0.00018404,2]
[393495869,1762723846951,-151.0,0.00018459,2]
[393495870,1762723846963,-198.0,0.00018459,2]
[393495871,1762723846975,-816.0,0.00018459,2]
[393495872,1762723846986,-500.0,0.00018459,2]
[393495873,1762723846996,-500.0,0.00018459,2]
[393495874,1762723847006,-287.8320148,0.00018459,2]
[393495875,1762723847018,-179.60642039,0.00018513,2]
[393495876,1762723847029,-816.0,0.00018513,2]
[393495877,1762723847040,-500.0,0.00018513,2]
[393495878,1762723847051,-500.0,0.00018513,2]
[393495879,1762723847063,-816.0,0.00018568,2]
[393495880,1762723847077,-374.42550605,0.00018568,2]
[393495881,1762723847089,-500.0,0.00018568,2]
[393495882,1762723847102,-816.0,0.00018623,2]
[393495883,1762723847113,-448.20839093,0.00018623,2]
[393495884,1762723847126,-13403.76494319,0.00018639,2]
[393495885,1762723847137,-816.0,0.00018678,2]
[393495886,1762723847151,-816.0,0.00018733,2]
[393495887,1762723847163,-816.0,0.00018787,2]
[393495888,1762723847175,-2971.6194263,0.00018838,2]
[393495889,1762723847186,-816.0,0.00018842,2]
[393495890,1762723847198,-816.0,0.00018897,2]
[393495891,1762723847215,-302.8788636,0.000189,2]
[393495892,1762723847228,-302.8788636,0.000189,2]
[393495893,1762723847239,-1000.0,0.00018921,2]
[393495894,1762723847251,-1000.0,0.00018921,2]
[393495895,1762723847263,-1000.0,0.00018921,2]
[393495896,1762723847275,-1000.0,0.00018921,2]
[393495897,1762723847288,-1000.0,0.00018921,2]
[393495898,1762723847300,-816.0,0.00018952,2]
[393495899,1762723847311,-57696.6302398,0.0001899,2]
[393495900,1762723847323,-816.0,0.00019007,2]
[393495901,1762723847334,-178.83100203,0.00019021,2]
[393495902,1762723847344,-957.9313076,0.00019039,2]
[393495903,1762723847354,-233.93183138,0.00019058,2]
[393495904,1762723847364,-816.0,0.00019061,2]
[393495905,1762723847375,-151.45456361,0.00019089,2]
[393495906,1762723847386,-302.8788636,0.00019089,2]
[393495907,1762723847396,-273.7669713,0.00019091,2]
[393495908,1762723847407,-816.0,0.00019116,2]
[393495909,1762723847419,-816.0,0.00019171,2]
[393495910,1762723847431,-500.0,0.00019178,2]
[393495911,1762723847443,-500.0,0.00019178,2]
[393495912,1762723847453,-500.0,0.00019178,2]
[393495913,1762723847463,-500.0,0.00019178,2]
[393495914,1762723847478,-500.0,0.00019178,2]
[393495915,1762723847492,-500.0,0.00019178,2]
[393495916,1762723847505,-500.0,0.00019178,2]
[393495917,1762723847521,-500.0,0.00019178,2]
[393495918,1762723847535,-494.76135564,0.00019178,2]
[393495919,1762723847549,-816.0,0.00019226,2]
[393495920,1762723847561,-302.8788636,0.00019278,2]
[393495921,1762723847574,-816.0,0.00019281,2]
[393495922,1762723847585,-816.0,0.00019335,2]
[393495923,1762723847597,-816.0,0.0001939,2]
[393495924,1762723847609,-816.0,0.00019445,2]
[393495925,1762723847621,-303.24224548,0.00019467,2]
[393495926,1762723847634,-1073.30323995,0.00019468,2]
[393495927,1762723847648,-1004.64489535,0.00019468,2]
[393495928,1762723847662,-500.0,0.00019468,2]
[393495929,1762723847674,-500.0,0.00019468,2]
[393495930,1762723847687,-816.0,0.000195,2]
[393495931,1762723847698,-816.0,0.00019554,2]
[393495932,1762723847708,-838.22874893,0.00019609,2]
[393495933,1762723847719,-500.0,0.00019629,2]
[393495934,1762723847733,-160.0,0.000199,2]
[393495935,1762723847744,-300.0,0.00019922,2]
[393495936,1762723847755,-388.0,0.00019922,2]
[393495937,1762723847767,-420.0,0.00019922,2]
[393495938,1762723847780,-420.0,0.00019922,2]
[393495939,1762723847791,-300.0,0.00019922,2]
[393495940,1762723847803,-1680.0,0.00020019,2]
[393495941,1762723847816,-502.16921861,0.00020177,2]
[393495942,1762723847828,-522.165682,0.00020187,2]
[393495943,1762723847840,-345.27124022,0.000202,2]
[393495944,1762723847851,-177.0,0.00020263,2]
[393495945,1762723847862,-260.0,0.00020448,2]
[393495946,1762723847873,-233.93183138,0.00020588,2]
[393495947,1762723847883,-811.46097959,0.00020716,2]
[393495948,1762723847894,-800.0,0.00020776,2]
[393495949,1762723847904,-800.0,0.00020847,2]
[393495950,1762723847915,-501.9660549,0.00020973,2]
[393495951,1762723847925,-500.0,0.00020973,2]
[393495952,1762723847935,-500.0,0.00020973,2]
[393495953,1762723847945,-360.0,0.00020996,2]
[393495954,1762723847956,-128500.48551383,0.00020998,2]
[393495955,1762723847968,-5511.15595764,0.00021,5]
[393495956,1762723847981,-178.31141551,0.00021001,7]
[393495957,1762723847992,-8821.3919026,0.00021125,2]
[393495958,1762723848003,-4358.29021439,0.00021126,2]
[393495959,1762723849164,-2823.88892491,0.00021126,2]
[393495960,1762723849174,-500.0,0.00021521,2]
[393495961,1762723849184,-501.63353717,0.00021521,2]
[393495962,1762723849194,-368.83071966,0.00021544,2]
[393495963,1762723849205,-91.16928034,0.00021544,2]
[393495964,1762723849215,-784.5203862,0.00021632,2]
[393495965,1762723849225,-587.0,0.00021731,2]
[393495966,1762723849235,-1142.21910545,0.00021741,2]
[393495967,1762723917105,-275.53459289,0.00018263,2]
[393495968,1762723920516,-12.66427709,0.00018263,2]
[393495969,1762723920539,-152.15309991,0.00018263,2]
[393495970,1762723923902,-300.0,0.00018262,2]
[393495971,1762723925530,-280.26054865,0.00018263,2]
[393495972,1762723927753,-67.58635144,0.00018263,2]
[393495973,1762723927776,-83.9857435,0.00018263,2]
[393495974,1762723930530,-416.0142565,0.00018263,2]
[393495975,1762723930554,-28.6057618,0.00018263,2]
[393495976,1762723945117,10000.01,0.00018173,2]
[393495977,1762723945150,10000.01,0.00018173,2]
[393495978,1762723945180,10000.01,0.00018173,2]
[393495979,1762723945210,10000.01,0.00018173,2]
[393495980,1762723945238,10000.01,0.00018173,2]
[393495981,1762723945264,10000.01,0.00018173,2]
[393495982,1762723945296,10000.01,0.00018173,2]
[393495983,1762723945327,10000.01,0.00018173,2]
[393495984,1762723945354,10000.01,0.00018173,2]
[393495985,1762723945389,19503.86329627,0.00018173,2]
[393495986,1762723947648,-377.86560874,0.00018173,2]
[393495987,1762723950472,-183.21805543,0.00018173,2]
[393495988,1762723952049,-220.11599029,0.00018173,2]
[393495989,1762723953582,-155.76197897,0.00018173,2]
[393495990,1762723955751,-252.10543403,0.00018173,2]
[393495991,1762723957469,-151.0,0.00018173,2]
[393495992,1762723958015,500.0,0.00018172,2]
[393495993,1762723958047,290.13205472,0.00018172,2]
[393495994,1762723958077,500.0,0.00018172,2]
[393495995,1762723958104,1503.98962557,0.00018172,2]
[393495996,1762723958133,500.0,0.00018172,2]
[393495997,1762723958173,1503.98962557,0.00018172,2]
[393495998,1762723958206,644.3388316,0.00018172,2]
[393495999,1762723958235,500.0,0.00018172,2]
[393496000,1762723958265,500.0,0.00018172,2]
[393496001,1762723958294,1503.98962557,0.00018172,2]
[393496002,1762723958322,500.0,0.00018172,2]
[393496003,1762723958351,1503.98962557,0.00018172,2]
[393496004,1762723958380,49.5806114,0.00018172,2]
[393496005,1762723958403,450.4193886,0.00018172,2]
[393496006,1762723958431,1503.98962557,0.00018172,2]
[393496007,1762723958459,500.0,0.00018172,2]
[393496008,1762723958487,500.0,0.00018172,2]
[393496009,1762723958514,1503.98962557,0.00018172,2]
[393496010,1762723958543,500.0,0.00018172,2]
[393496011,1762723958572,1503.98962557,0.00018172,2]
[393496012,1762723958601,500.0,0.00018172,2]
[393496013,1762723958631,1503.98962557,0.00018172,2]
[393496014,1762723958660,522.88928939,0.00018172,2]
[393496015,1762723958694,1010.74281973,0.00018172,2]
[393496016,1762723958719,493.24680584,0.00018172,2]
[393496017,1762723958750,542.48513085,0.00018172,2]
[393496018,1762723958780,1503.98962557,0.00018172,2]
[393496019,1762723958811,1503.98962557,0.00018172,2]
[393496020,1762723958843,1503.98962557,0.00018172,2]
[393496021,1762723958879,1503.98962557,0.00018172,2]
[393496022,1762723958913,1503.98962557,0.00018172,2]
[393496023,1762723958944,1444.32993546,0.00018172,2]
[393496024,1762723958970,59.65969011,0.00018172,2]
[393496025,1762723959004,1503.98962557,0.00018172,2]
[393496026,1762723959034,1503.98962557,0.00018172,2]
[393496027,1762723959065,1503.98962557,0.00018172,2]
[393496028,1762723959097,1503.98962557,0.00018172,2]
[393496029,1762723959128,1503.98962557,0.00018172,2]
[393496030,1762723959161,1503.98962557,0.00018172,2]
[393496031,1762723959191,916.41255647,0.00018172,2]
[393496032,1762723959215,587.5770691,0.00018172,2]
[393496033,1762723959244,1503.98962557,0.00018172,2]
[393496034,1762723959272,1503.98962557,0.00018172,2]
[393496035,1762723959300,1503.98962557,0.00018172,2]
[393496036,1762723959328,1503.98962557,0.00018172,2]
[393496037,1762723959355,1503.98962557,0.00018172,2]
[393496038,1762723959387,1503.98962557,0.00018172,2]
[393496039,1762723959416,388.49517748,0.00018172,2]
[393496040,1762723959439,1115.49444809,0.00018172,2]
[393496041,1762723959466,1503.98962557,0.00018172,2]
[393496042,1762723959492,1503.98962557,0.00018172,2]
[393496043,1762723959525,1503.98962557,0.00018172,2]
[393496044,1762723959560,1503.98962557,0.00018172,2]
[393496045,1762723959592,1503.98962557,0.00018172,2]
[393496046,1762723959626,1364.56742406,0.00018172,2]
[393496047,1762723959649,139.42220151,0.00018172,2]
[393496048,1762723959718,1503.98962557,0.00018172,2]
[393496049,1762723959748,1503.98962557,0.00018172,2]
[393496050,1762723959779,1503.98962557,0.00018172,2]
[393496051,1762723959808,1503.98962557,0.00018172,2]
[393496052,1762723959837,1503.98962557,0.00018172,2]
[393496053,1762723959869,1503.98962557,0.00018172,2]
[393496054,1762723959908,836.65004507,0.00018172,2]
[393496055,1762723959934,667.3395805,0.00018172,2]
[393496056,1762723959964,1503.98962557,0.00018172,2]
[393496057,1762723959996,1503.98962557,0.00018172,2]
[393496058,1762723960157,1503.98962557,0.00018172,2]
[393496059,1762723960188,-228.62101657,0.00018173,2]
[393496060,1762723960220,1503.98962557,0.00018172,2]
[393496061,1762723960253,1503.98962557,0.00018172,2]
[393496062,1762723960281,1503.98962557,0.00018172,2]
[393496063,1762723960310,308.73266608,0.00018172,2]
[393496064,1762723960333,1195.25695949,0.00018172,2]
[393496065,1762723960403,1503.98962557,0.00018172,2]
[393496066,1762723960432,1503.98962557,0.00018172,2]
[393496067,1762723960621,150.0,0.00018172,2]
[393496068,1762723961455,-243.08541797,0.00018173,2]
[393496072,1762723971129,5000.0,0.00018111,2]
[393496077,1762723972065,-258.31547562,0.00018172,2]
[393496082,1762723975323,-323.46646546,0.00018172,2]
[393496083,1762723978037,-268.171401,0.00018172,2]
[393496084,1762723979714,-196.1568775,0.00018172,2]
[393496085,1762723981536,-174.03950659,0.00018172,2]
[393496086,1762723983719,-300.0,0.00018171,2]
[393496087,1762723983746,-79.81865684,0.00018172,2]
[393496088,1762723987292,-455.59804382,0.00018172,2]
[393496089,1762723989071,-173.84863276,0.00018172,2]
[393496090,1762723989095,-130.31340096,0.00018172,2]
[393496091,1762723993691,5000.0,0.00018111,2]
[393496092,1762723994341,-220.93293379,0.00018172,2]
[393496093,1762723995967,-294.79700951,0.00018172,2]
[393496094,1762723997582,-157.15374331,0.00018172,2]
[393496095,1762723999127,-161.26386905,0.00018172,2]
[393496096,1762724001349,-179.25259849,0.00018172,2]
[393496097,1762724003431,-330.68380564,0.00018172,2]
[393496098,1762724006156,-175.15076369,0.00018172,2]
[393496100,1762724016941,4816.69029553,0.00018111,2]